[Event "World Junior U20 Open 2018"]
[Site "Gebze"]
[Date "2018.09.13"]
[Round "9.44"]
[White "Baenziger, Fabian"]
[Black "Samani, Yamac"]
[Result "1-0"]
[ECO "E15"]
[WhiteElo "2360"]
[BlackElo "2226"]
[Annotator "NA"]
[PlyCount "73"]
[EventDate "2018.09.05"]
[EventType "swiss"]
[EventCountry "TUR"]
[SourceTitle "playchess.com"]
[Source "ChessBase"]
[SourceQuality "1"]
[TimeControl "40/5400+30:1800+30"]

1. d4 {[%emt 0:00:30]} Nf6 {[%emt 0:00:30]} 2. c4 {[%emt 0:00:00]} e6 {[%emt 0:00:00]} 3. Nf3 {[%emt 0:00:00]} d5 {[%emt 0:01:00]} 4. g3 {[%emt 0:00:30]} Bb4+ {[%emt 0:00:00]} 5. Bd2 {[%emt 0:00:00]} Be7 {[%emt 0:00:00]} 6. Bg2 {[%emt 0:00:00]} O-O {[%emt 0:00:30]} 7. O-O {[%emt 0:00:00]} c6 {[%emt 0:00:30]} 8. Qc2 {[%emt 0:06:00]} Nbd7 {[%emt 0:01:00]} 9. Bf4 {[%emt 0:00:30]} b6 {[%emt 0:00:30]} 10. Rd1 {[%emt 0:01:00]} Ba6 {[%emt 0:01:30]} 11. b3 {[%emt 0:00:30]} Rc8 {[%emt 0:01:30]} 12. Nc3 {[%emt 0:01:30] E15: Queen's Indian: 4 g3 sidelines, 4 g3 Ba6 and 4 g3 Bb7 early deviations} Qe8 {[%emt 0:03:30]} (12... Nh5 13. Bc1 f5 14. e3 Bd6 15. a4 Nhf6 16. Ne2 c5 17. Nf4 Qe7 18. cxd5 cxd4 19. Qb2 dxe3 20. Nxe6 exf2+ 21. Qxf2 {0-1 (35) Sarana,A (2613)-Jakovenko,D (2748) Satka 2018}) 13. e4 {[%emt 0:04:30]} dxc4 {[%emt 0:02:30]} 14. Nd2 {[%emt 0:08:30]} e5 {[%emt 0:02:30]} 15. dxe5 {[%emt 0:03:30]} Ng4 {[%emt 0:00:30] LiveBook: 17 Games} 16. Bh3 {[%emt 0:01:30]} h5 {[%emt 0:32:30] [#]} 17. Bxg4 $146 {[%emt 0:40:30]} ({Predecessor:} 17. Nxc4 Bxc4 18. bxc4 Bc5 19. Bxg4 hxg4 {½-½ (32) Ftacnik,L (2553)-Gross,D (2491) Austria 2007}) 17... hxg4 {[%emt 0:00:30]} 18. Nf1 {[%emt 0:00:30]} g5 $2 {[%emt 0:12:30]} (18... Bb4 $17 19. Rac1 Nxe5 20. Bxe5 Qxe5) 19. Qe2 {[%emt 0:03:30]} Bd8 {[%emt 1:14:30]} 20. e6 {[%emt 0:14:30]} Qxe6 {[%emt 0:02:30]} 21. Rd6 {[%emt 0:00:30]} Qe7 $11 {[%emt 1:23:48]} 22. e5 {[%emt 1:15:00]} gxf4 {[%emt 0:00:30]} 23. Qxg4+ {[%emt 0:00:30]} Qg5 {[%emt 0:00:30]} 24. Qxg5+ {[%emt 0:00:30]} Bxg5 {[%emt 0:00:30]} 25. Rxd7 {[%emt 0:00:30]} cxb3 {[%emt 0:00:30]} 26. axb3 {[%emt 0:00:30]} Bxf1 {[%emt 0:00:30]} 27. Kxf1 {[%emt 0:00:00]} Rce8 {[%emt 0:05:16]} 28. Ra4 {[%emt 0:04:00]} Rxe5 {[%emt 0:03:46]} 29. gxf4 {[%emt 0:00:00]} Rc5 {[%emt 0:00:52]} 30. Ne4 {[%emt 0:00:00]} Rc1+ {[%emt 0:00:30]} 31. Kg2 {[%emt 0:01:30]} Bh6 {[%emt 0:01:37]} 32. f5 {[%emt 0:01:30]} a5 {[%emt 0:01:28]} 33. Nf6+ {[%emt 0:01:30]} Kg7 {[%emt 0:00:30]} 34. Nh5+ {[%emt 0:00:30]} Kh7 {[%emt 0:00:30]} 35. Rg4 {[%emt 0:00:00]} Kh8 {[%emt 0:04:33]} 36. Nf6 {[%emt 0:00:00]} Bg7 {[%emt 0:01:43]} 37. Rd3 {[%emt 0:00:30]} 1-0

[Event "World Junior U20 Open 2018"]
[Site "Gebze"]
[Date "2018.09.13"]
[Round "9.45"]
[White "Murphy, Conor E"]
[Black "Nogerbek, Kazybek"]
[Result "1-0"]
[ECO "D20"]
[WhiteElo "2357"]
[BlackElo "2261"]
[Annotator "NA"]
[PlyCount "141"]
[EventDate "2018.09.05"]
[EventType "swiss"]
[EventCountry "TUR"]
[SourceTitle "playchess.com"]
[Source "ChessBase"]
[SourceQuality "1"]
[TimeControl "40/5400+30:1800+30"]

1. e4 {[%emt 0:00:30]} e6 {[%emt 0:00:30]} 2. d4 {[%emt 0:00:00]} d5 {[%emt 0:00:30]} 3. exd5 {[%emt 0:01:00]} exd5 {[%emt 0:00:00]} 4. Nf3 {[%emt 0:00:30]} Bd6 {[%emt 0:00:00]} 5. c4 {[%emt 0:00:00]} dxc4 {[%emt 0:06:30]} 6. Bxc4 {[%emt 0:00:00]} Nf6 {[%emt 0:01:30]} 7. O-O {[%emt 0:00:00]} O-O {[%emt 0:01:30]} 8. Nc3 {[%emt 0:01:30]} Nc6 {[%emt 0:01:30] D20: Queen's Gambit Accepted: 3 e3 and 3 e4} 9. h3 {[%emt 0:02:30]} Bf5 {[%emt 0:09:30]} 10. Bg5 {[%emt 0:04:30]} h6 {[%emt 0:05:30]} 11. Bh4 {[%emt 0:00:30]} g5 {[%emt 0:01:30]} 12. Bg3 {[%emt 0:00:30]} Bxg3 {[%emt 0:09:30]} 13. fxg3 {[%emt 0:00:30] LiveBook: 4 Games} Ne4 {[%emt 0:01:30]} 14. g4 $146 {[%emt 0:23:30]} ({Predecessor:} 14. Nxe4 Bxe4 15. Ne5 Nxe5 16. dxe5 {1-0 (34) Botvinnik,I (2369)-Golod,V (2570) Israel 2011}) 14... Bh7 {[%emt 0:04:30]} 15. Bd3 {[%emt 0:04:30]} Nxc3 {[%emt 0:05:30]} 16. Bxh7+ {[%emt 0:39:00]} Kxh7 {[%emt 0:00:30]} 17. bxc3 {[%emt 0:00:30]} Kg8 {[%emt 0:00:30]} 18. Nd2 {[%emt 0:08:30]} Qe7 {[%emt 0:04:30]} 19. Re1 {[%emt 0:03:30]} Qd7 {[%emt 1:06:30]} 20. Ne4 {[%emt 0:00:30]} f5 {[%emt 0:00:30]} 21. gxf5 {[%emt 0:06:30]} Qxf5 {[%emt 0:05:30]} 22. Qb3+ {[%emt 0:02:30]} Kh8 23. Qxb7 Ne7 24. Qxc7 Ng6 {[%emt 1:23:00]} 25. Qc5 {[%emt 1:15:30]} Qf4 {[%emt 0:00:30]} 26. Qd6 {[%emt 0:00:30]} Qxd6 {[%emt 0:00:30]} 27. Nxd6 {[%emt 0:00:30]} Rab8 {[%emt 0:00:30]} 28. Rab1 {[%emt 0:00:30]} Nf4 {[%emt 0:03:00]} 29. Rb3 {[%emt 0:10:00]} a5 {[%emt 0:05:57]} 30. c4 {[%emt 0:02:19]} a4 {[%emt 0:01:40]} 31. Rxb8 {[%emt 0:00:30]} Rxb8 {[%emt 0:00:00]} 32. Nb5 {[%emt 0:02:01]} Kg7 {[%emt 0:00:36]} 33. Re7+ {[%emt 0:01:50]} Kf6 {[%emt 0:00:13]} 34. Ra7 {[%emt 0:01:17]} Re8 {[%emt 0:00:36]} 35. Ra6+ {[%emt 0:00:25]} Kg7 {[%emt 0:00:21]} 36. Rxa4 {[%emt 0:01:46]} Re2 {[%emt 0:01:01]} 37. c5 {[%emt 0:03:01]} Rxg2+ {[%emt 0:01:30]} 38. Kf1 {[%emt 0:00:30]} Rc2 {[%emt 0:00:00]} 39. Ra3 {[%emt 0:00:30]} Nd5 {[%emt 0:00:57]} 40. Ke1 {[%emt 0:00:00]} h5 {[%emt 0:00:00]} 41. Kd1 {[%emt 0:07:21]} Rc4 {[%emt 0:03:09]} 42. Kd2 {[%emt 0:02:30]} h4 {[%emt 0:06:30]} 43. Kd3 {[%emt 0:09:30]} Rb4 {[%emt 0:05:30]} 44. Ke4 {[%emt 0:00:30]} Ne7 {[%emt 0:03:30]} 45. Nd6 {[%emt 0:01:30]} Kg6 {[%emt 0:03:30]} 46. Ra6 {[%emt 0:02:33]} Kg7 {[%emt 0:04:45]} 47. c6 {[%emt 0:02:10]} g4 {[%emt 0:02:45]} 48. c7 {[%emt 0:00:53]} gxh3 {[%emt 0:00:49]} 49. Ra3 {[%emt 0:01:09]} h2 {[%emt 0:02:24]} 50. Rh3 {[%emt 0:00:12]} Rb2 {[%emt 0:00:00]} 51. Nf5+ {[%emt 0:03:48]} Nxf5 {[%emt 0:00:21]} 52. Kxf5 {[%emt 0:00:05]} Rc2 {[%emt 0:00:40]} 53. Ke6 {[%emt 0:00:16]} Rxc7 {[%emt 0:00:10]} 54. Rxh2 {[%emt 0:00:16]} Rc6+ {[%emt 0:01:03]} 55. Ke7 {[%emt 0:00:36]} Ra6 {[%emt 0:01:10]} 56. Rxh4 {[%emt 0:01:13]} Ra7+ {[%emt 0:00:10]} 57. Kd6 {[%emt 0:00:27]} Ra6+ {[%emt 0:00:52]} 58. Kd7 {[%emt 0:00:19]} Ra7+ {[%emt 0:00:40]} 59. Kc6 {[%emt 0:00:07]} Kf6 {[%emt 0:00:13]} 60. Re4 {[%emt 0:00:18]} Ra6+ {[%emt 0:01:17]} 61. Kb5 {[%emt 0:00:13]} Rxa2 {[%emt 0:00:06]} 62. d5 {[%emt 0:00:20]} Kf7 {[%emt 0:01:47]} 63. d6 {[%emt 0:00:18]} Rd2 {[%emt 0:00:35]} 64. Kc6 {[%emt 0:00:05]} Rc2+ {[%emt 0:00:00]} 65. Kb7 {[%emt 0:00:15]} Rc3 {[%emt 0:00:53]} 66. d7 {[%emt 0:00:11]} Rd3 {[%emt 0:00:04]} 67. Kc6 {[%emt 0:00:51]} Rc3+ {[%emt 0:00:30]} 68. Kd6 {[%emt 0:00:30]} Rd3+ {[%emt 0:00:30]} 69. Kc7 {[%emt 0:00:30]} Rc3+ {[%emt 0:00:30]} 70. Kd8 {[%emt 0:00:00]} Rh3 {[%emt 0:00:00]} 71. Rc4 {[%emt 0:00:46]} 1-0

[Event "World Junior U20 Open 2018"]
[Site "Gebze"]
[Date "2018.09.13"]
[Round "9.46"]
[White "Krishna Teja, N."]
[Black "Silva, David"]
[Result "1-0"]
[ECO "E92"]
[WhiteElo "2356"]
[BlackElo "2223"]
[Annotator "NA"]
[PlyCount "97"]
[EventDate "2018.09.05"]
[EventType "swiss"]
[EventCountry "TUR"]
[SourceTitle "playchess.com"]
[Source "ChessBase"]
[SourceQuality "1"]
[TimeControl "40/5400+30:1800+30"]

1. d4 {[%emt 1:30:30]} Nf6 {[%emt 0:01:30]} 2. c4 {[%emt 0:00:30]} g6 {[%emt 0:00:30]} 3. Nc3 {[%emt 0:00:00]} Bg7 {[%emt 0:00:30]} 4. e4 {[%emt 0:00:00]} d6 {[%emt 0:00:00]} 5. Be2 {[%emt 0:00:00]} O-O {[%emt 0:00:00]} 6. Nf3 {[%emt 0:00:00]} e5 {[%emt 0:07:30]} 7. d5 {[%emt 0:00:00]} a5 {[%emt 0:02:30]} 8. Bg5 {[%emt 0:00:00]} h6 {[%emt 0:00:30]} 9. Be3 {[%emt 0:00:00]} Na6 {[%emt 0:01:30] E92: King's Indian: Classical: 6 Be2 e5: 7 dxe5, 7 Be3 and Petrosian System without 7...Nbd7} (9... Ng4 10. Bd2 f5 11. h3 Nf6 12. exf5 gxf5 13. g3 Na6 14. Qc1 Kh7 15. Nh4 Nc5 16. Be3 Nfe4 17. Nxe4 Nxe4 {½-½ (42) Korobov,A (2678)-Kovalev,V (2650) Poikovsky 2018}) 10. Nd2 {[%emt 0:00:00]} Nc5 {[%emt 0:00:30]} 11. g4 {[%emt 0:00:00]} Nh7 {[%emt 0:00:30]} 12. Nb3 $146 {[%emt 0:00:00]} ({Predecessor:} 12. Rg1 Ng5 13. Rg3 f5 14. gxf5 gxf5 15. exf5 Kh8 16. h4 Nh7 {0-1 (76) Fant,G (2066)-Jensen,T Copenhagen 1999}) 12... Nxb3 {[%emt 0:01:30]} 13. axb3 {[%emt 0:00:00]} f5 {[%emt 0:00:30]} 14. gxf5 {[%emt 0:00:00]} gxf5 {[%emt 0:00:00]} 15. exf5 {[%emt 0:00:00]} Bxf5 {[%emt 0:00:30]} 16. Bg4 {[%emt 0:00:00]} Qh4 {[%emt 0:01:30]} 17. Bxf5 {[%emt 0:00:00]} Rxf5 {[%emt 0:00:30]} 18. Qc2 {[%emt 0:00:00]} (18. h3 $14) 18... Rf7 {[%emt 0:06:30]} 19. Ne4 {[%emt 0:00:00]} ({White should try} 19. O-O-O $11) 19... Nf6 {[%emt 0:06:30]} 20. Nxf6+ {[%emt 0:00:00]} Rxf6 {[%emt 0:00:30]} 21. O-O-O {[%emt 0:00:00]} a4 {[%emt 0:00:30]} 22. bxa4 {[%emt 0:00:00]} b5 $1 {[%emt 0:00:30]} 23. b3 {[%emt 0:00:00]} bxa4 {[%emt 0:02:30]} 24. bxa4 {[%emt 0:00:00]} Rb8 {[%emt 0:00:00]} 25. Rd3 {[%emt 0:00:00]} c6 {[%emt 0:04:00]} 26. dxc6 {[%emt 0:00:00]} Qe4 {[%emt 0:00:30]} 27. Rhd1 {[%emt 0:00:00]} Qxc6 {[%emt 0:01:00]} 28. c5 {[%emt 0:00:00]} dxc5 {[%emt 0:39:00]} 29. Rd8+ {[%emt 0:00:30]} Rf8 {[%emt 0:00:30]} 30. Qc4+ {[%emt 0:00:30]} Kh8 {[%emt 0:00:30]} 31. Rxf8+ {[%emt 0:06:30]} Rxf8 {[%emt 0:01:30]} 32. Rd5 {[%emt 0:00:30]} Ra8 {[%emt 0:00:30]} 33. Qe4 {[%emt 0:01:30]} (33. Bxc5 $2 Bf8 $17) 33... Qe8 {[%emt 0:01:00]} 34. Rd7 {[%emt 0:03:30]} Qxd7 {[%emt 0:01:30]} 35. Qxa8+ {[%emt 0:00:30]} Kh7 {[%emt 0:00:30]} 36. Qe4+ {[%emt 0:01:00]} Kh8 {[%emt 0:00:00]} 37. Kb2 {[%emt 1:13:30]} Qd1 {[%emt 0:00:30]} 38. Bxc5 {[%emt 0:00:30]} Qd2+ {[%emt 0:00:30]} 39. Kb3 {[%emt 0:00:30]} Qd1+ {[%emt 0:00:30]} 40. Kb4 {[%emt 0:00:30]} Qd2+ {[%emt 0:00:30]} 41. Kc4 {[%emt 0:05:30]} Qa5 {[%emt 0:04:00]} 42. Qc6 {[%emt 0:00:30]} e4 {[%emt 0:00:30]} 43. Qe8+ {[%emt 0:03:00]} Kh7 {[%emt 0:00:30]} 44. Qxe4+ {[%emt 0:03:30]} Kh8 {[%emt 0:00:00]} 45. Qe8+ {[%emt 0:00:30]} Kh7 {[%emt 0:00:00]} 46. Kd5 {[%emt 0:03:00]} Qa6 $18 {[%emt 0:01:30]} 47. Qc6 Qd3+ 48. Ke6 Qc4+ 49. Kd7 {[%emt 0:54:30]} 1-0

[Event "World Junior U20 Open 2018"]
[Site "Gebze"]
[Date "2018.09.13"]
[Round "9.47"]
[White "Liyanage, Ranindu Dilshan"]
[Black "Bashirli, Nail"]
[Result "0-1"]
[ECO "B61"]
[WhiteElo "1989"]
[BlackElo "2354"]
[Annotator "NA"]
[PlyCount "68"]
[EventDate "2018.09.05"]
[EventType "swiss"]
[EventCountry "TUR"]
[SourceTitle "playchess.com"]
[Source "ChessBase"]
[SourceQuality "1"]
[TimeControl "40/5400+30:1800+30"]

1. e4 {[%emt 0:00:30]} c5 {[%emt 0:00:00]} 2. Nf3 {[%emt 0:00:00]} d6 {[%emt 0:00:00]} 3. d4 {[%emt 0:00:00]} cxd4 {[%emt 0:00:30]} 4. Nxd4 {[%emt 0:00:30]} Nf6 {[%emt 0:00:30]} 5. Nc3 {[%emt 0:00:30]} Nc6 {[%emt 0:00:30]} 6. Bg5 {[%emt 0:00:30]} Bd7 {[%emt 0:00:30]} 7. Qd2 {[%emt 0:00:30]} Rc8 {[%emt 0:00:30]} 8. O-O-O {[%emt 0:00:30]} Nxd4 {[%emt 0:00:30]} 9. Qxd4 {[%emt 0:00:30]} Qa5 {[%emt 0:00:30]} 10. f4 {[%emt 0:00:30]} h6 {[%emt 0:00:30]} 11. Bxf6 {[%emt 0:00:30]} gxf6 {[%emt 0:00:30]} 12. Bc4 {[%emt 0:00:30]} Qc5 {[%emt 0:13:30] B61: Sicilian: Richter-Rauzer: 6...Bd7 7 Qd2} 13. Bb3 {[%emt 0:05:30] [#]} Rg8 $146 {[%emt 0:07:30]} ({Predecessor:} 13... Qxd4 14. Rxd4 Rc5 15. Nd5 h5 16. c3 h4 17. Ba4 b5 18. Bc2 Bg7 19. Re1 e6 20. Nb4 {1-0 (39) Kovalev,V (2598)-Atabayev,M (2512) Budapest 2017}) 14. e5 $2 {[%emt 0:03:30]} (14. Qd2 $16 {and life is bright.}) 14... Qxd4 {[%emt 0:05:30]} ({Of course not} 14... Rxg2 $6 15. Qe4 $14) 15. Rxd4 {[%emt 0:00:30]} fxe5 {[%emt 0:09:30]} 16. fxe5 {[%emt 0:01:00]} Rxg2 {[%emt 0:04:30]} 17. Rf1 {[%emt 0:44:30]} Bg7 {[%emt 0:07:30]} 18. Bxf7+ {[%emt 0:03:30]} Kd8 {[%emt 0:00:30]} 19. Bd5 {[%emt 0:01:30]} (19. Rb4 $15) 19... Rg5 {[%emt 0:05:30]} ({Much weaker is} 19... dxe5 $6 20. Rd3 $11) ({Of course not} 19... Bxe5 $6 20. Rb4 $11) 20. Rb4 Rxe5 21. Rg1 Rg5 22. Rxg5 hxg5 23. Rxb7 Bd4 24. Nb5 Be3+ 25. Kb1 Bf5 26. Na3 g4 {[%emt 1:12:00]} 27. Rb4 {[%emt 1:27:04]} Bc5 {[%emt 0:00:30]} 28. Rf4 {[%emt 0:00:30]} e6 {[%emt 0:00:30]} 29. Bb3 {[%emt 0:00:30]} Bg1 {[%emt 0:00:30]} 30. Nc4 {[%emt 0:04:37]} Bxh2 {[%emt 0:02:30]} 31. Rf2 {[%emt 0:00:06]} g3 {[%emt 0:00:30]} 32. Rd2 {[%emt 0:00:30]} d5 {[%emt 0:01:30]} 33. Ne3 {[%emt 0:03:20]} Be4 $19 {[%emt 0:00:30]} 34. Ng2 {[%emt 0:01:05]} Ke7 {[%emt 0:00:00]} 0-1

[Event "World Junior U20 Open 2018"]
[Site "Gebze"]
[Date "2018.09.13"]
[Round "9.48"]
[White "Kalogeris, Ioannis"]
[Black "Ozsakallioglu, Okan"]
[Result "1-0"]
[ECO "B45"]
[WhiteElo "2352"]
[BlackElo "1955"]
[Annotator "NA"]
[PlyCount "31"]
[EventDate "2018.09.05"]
[EventType "swiss"]
[EventCountry "TUR"]
[SourceTitle "playchess.com"]
[Source "ChessBase"]
[SourceQuality "1"]
[TimeControl "40/5400+30:1800+30"]

{[%evp 15,25,32,8,32767,-12,-28,92,32767,97,80,83,91]} 1. e4 {[%emt 0:04:30]} c5 {[%emt 0:00:30]} 2. Nf3 {[%emt 0:00:00]} e6 {[%emt 0:00:00]} 3. d4 {[%emt 0:00:00]} cxd4 {[%emt 0:00:00]} 4. Nxd4 {[%emt 0:00:30]} Nc6 {[%emt 0:00:00]} 5. Nc3 {[%emt 0:00:30]} Nf6 {[%emt 0:00:00]} 6. a3 {[%emt 0:03:30]} d5 {[%emt 0:01:30]} 7. exd5 {[%emt 0:01:30]} exd5 {[%emt 0:01:30]} 8. Be2 {[%emt 0:03:30]} Bd6 {[%emt 0:02:30]} 9. Bg5 {[%emt 0:02:30]} O-O {[%emt 0:01:30]} 10. O-O {[%emt 0:09:30]} Qe7 {[%emt 0:01:30]} (10... Be5 $11 11. Nf3 Bxc3 12. bxc3 Re8) 11. Nxd5 {[%emt 0:06:30]} Bxh2+ {[%emt 0:01:30]} 12. Kh1 {[%emt 0:01:30]} Qd6 {[%emt 0:00:30]} 13. Bxf6 $16 {[%emt 0:11:30]} gxf6 {[%emt 0:01:30]} 14. Nb5 {[%emt 0:00:30]} Qb8 {[%emt 0:06:30]} 15. f4 {[%emt 0:08:30]} Bg3 {[%emt 0:01:30]} 16. Nxf6+ {[%emt 0:00:30]} 1-0

[Event "World Junior U20 Open 2018"]
[Site "Gebze"]
[Date "2018.09.13"]
[Round "9.49"]
[White "Kamer, Kayra"]
[Black "Murzin, Volodar"]
[Result "1/2-1/2"]
[ECO "B90"]
[WhiteElo "2205"]
[BlackElo "2349"]
[Annotator "NA"]
[PlyCount "70"]
[EventDate "2018.09.05"]
[EventType "swiss"]
[EventCountry "TUR"]
[SourceTitle "playchess.com"]
[Source "ChessBase"]
[SourceQuality "1"]
[TimeControl "40/5400+30:1800+30"]

1. e4 {[%emt 0:00:30]} c5 {[%emt 0:00:30]} 2. Nf3 {[%emt 0:00:30]} d6 {[%emt 0:00:30]} 3. d4 {[%emt 0:00:00]} cxd4 {[%emt 0:00:00]} 4. Nxd4 {[%emt 0:00:00]} Nf6 {[%emt 0:00:00]} 5. Nc3 {[%emt 0:00:00]} a6 {[%emt 0:00:00]} 6. Be3 {[%emt 0:00:00]} e5 {[%emt 0:01:00]} 7. Nf3 {[%emt 0:00:00]} Be7 {[%emt 0:00:00]} 8. Bc4 {[%emt 0:00:00]} O-O {[%emt 0:03:00]} 9. O-O {[%emt 0:00:30]} Be6 {[%emt 0:00:30]} 10. Qe2 {[%emt 0:00:00] B90: Sicilian Najdorf: Unusual White 6th moves, 6 Be3 Ng4 and 6 Be3 e5} (10. Bb3 Qc7 11. Nh4 g6 12. Nf3 Re8 13. Ng5 Bc4 14. Re1 Nbd7 15. a4 Qc6 16. Bxc4 Qxc4 17. a5 Qc6 18. Qd3 Rac8 {½-½ (48) Sjugirov,S (2652)-Wojtaszek,R (2738) Batumi 2018}) 10... Bxc4 {[%emt 0:01:30]} 11. Qxc4 {[%emt 0:00:30]} b5 {[%emt 0:03:30]} 12. Qd3 {[%emt 0:01:30]} Nbd7 {[%emt 0:02:30]} 13. b4 {[%emt 0:05:30]} Qc7 {[%emt 0:14:30]} 14. a4 {[%emt 0:01:30]} Rfc8 $146 {[%emt 0:04:30]} ({Predecessor:} 14... d5 15. Nxd5 Nxd5 16. Qxd5 Bxb4 17. axb5 {½-½ (72) Bjerke,R (2180)-Fivelstad,J (1929) Reykjavik 2015}) 15. Bd2 {[%emt 0:01:30]} Rab8 {[%emt 0:11:30]} 16. axb5 {[%emt 0:02:30]} axb5 {[%emt 0:00:30]} 17. Rfc1 {[%emt 0:06:30]} Qc4 {[%emt 0:08:00]} 18. Ra5 {[%emt 0:00:30]} Bd8 {[%emt 0:01:30]} 19. Ra6 {[%emt 0:01:30]} Qxb4 {[%emt 0:06:30]} 20. Rb1 {[%emt 0:00:30]} Qc4 {[%emt 0:04:30]} 21. Qxd6 {[%emt 0:22:30]} b4 {[%emt 0:18:35]} 22. Ra4 {[%emt 0:02:30] [#]} Rb6 $2 {[%emt 0:01:49]} ({But not} 22... bxc3 $2 23. Rxb8 Qc5 24. Qxc5 $18) (22... Nc5 $1 $19 {[%cal Rc5a4]} 23. Raa1 Rb6 24. Nxe5 Qe6 25. Qxe6 Rxe6) 23. Rbxb4 {[%emt 0:28:30]} Qxb4 {[%emt 1:28:40]} 24. Qxb4 {[%emt 0:00:30]} Rxb4 {[%emt 0:00:30]} 25. Rxb4 {[%emt 0:00:30]} Ba5 {[%emt 0:00:30]} 26. Rb3 {[%emt 0:00:30]} h6 {[%emt 0:01:47]} 27. Nd5 {[%emt 0:05:30]} Nxd5 {[%emt 0:00:22]} 28. Bxa5 {[%emt 0:00:30]} N5f6 {[%emt 0:02:01]} 29. Ne1 {[%emt 0:04:30]} Nxe4 {[%emt 0:01:52]} 30. f3 {[%emt 0:00:30]} Ng5 {[%emt 0:01:30]} 31. Rd3 {[%emt 0:01:30]} Nb8 {[%emt 0:01:36]} 32. Rd8+ {[%emt 0:00:30]} Rxd8 {[%emt 0:00:30]} 33. Bxd8 {[%emt 0:00:30]} Ne6 {[%emt 0:00:30]} 34. Bb6 {[%emt 0:00:30]} Kf8 {[%emt 0:00:12]} 35. Nd3 {[%emt 0:00:30]} Ke7 $16 {[%emt 0:02:19]} (35... Nd7 $11 36. Ba5 f6) 1/2-1/2

[Event "World Junior U20 Open 2018"]
[Site "Gebze"]
[Date "2018.09.13"]
[Round "9.53"]
[White "Secheres, Adrian-Simion"]
[Black "Gulbeyaz, Emir"]
[Result "1-0"]
[ECO "B06"]
[WhiteElo "2408"]
[BlackElo "2285"]
[Annotator "ChessBase"]
[PlyCount "83"]
[EventDate "2018.09.05"]
[EventType "swiss"]
[EventCountry "TUR"]
[SourceTitle "playchess.com"]
[Source "ChessBase"]
[SourceQuality "1"]
[TimeControl "40/5400+30:1800+30"]

1. e4 g6 2. d4 Bg7 3. Nc3 d6 4. Be3 a6 5. Qd2 b5 6. h4 h6 7. O-O-O Bb7 8. f3 Nd7 9. Nh3 Rc8 10. Kb1 c5 11. dxc5 Nxc5 12. Bd4 Nf6 13. Nd5 O-O 14. Nxf6+ exf6 15. Nf4 Ne6 16. Nxe6 fxe6 17. Be3 d5 18. exd5 Qxd5 19. Bd3 g5 20. Qb4 Qe5 21. Bd4 Qc7 22. hxg5 fxg5 23. Bxg7 Kxg7 24. Rxh6 Kxh6 25. Rh1+ Kg7 26. Rh7+ Kg8 27. Rxc7 Rxc7 28. Qd6 Rcf7 29. Qxe6 Bc8 30. Qh6 g4 {[%emt 0:36:00]} 31. Be4 {[%emt 1:20:30]} gxf3 {[%emt 0:00:30]} 32. gxf3 {[%emt 0:01:30]} Bb7 {[%emt 0:00:30]} 33. Qg6+ {[%emt 0:00:30]} Rg7 {[%emt 0:00:30]} 34. Qe6+ {[%emt 0:00:30]} Kh8 {[%emt 0:01:30]} 35. a3 {[%emt 0:02:30]} Bxe4 {[%emt 0:01:30]} 36. fxe4 {[%emt 0:00:30]} Rf1+ {[%emt 0:00:00]} 37. Ka2 {[%emt 0:00:00]} Re1 {[%emt 0:00:00]} 38. Qxa6 {[%emt 0:01:00]} b4 {[%emt 0:00:30]} 39. Qc8+ {[%emt 0:01:30]} Kh7 {[%emt 0:00:30]} 40. Qh3+ {[%emt 0:00:00]} Kg8 {[%emt 0:00:30]} 41. Qb3+ {[%emt 0:00:00]} Kh7 {[%emt 0:00:30]} 42. Qxb4 {[%emt 0:00:30]} 1-0

[Event "World Junior U20 Open 2018"]
[Site "Gebze"]
[Date "2018.09.13"]
[Round "9.54"]
[White "Huber, Martin Christian"]
[Black "Rodrigue-Lemieux, Shawn"]
[Result "1/2-1/2"]
[ECO "E06"]
[WhiteElo "2390"]
[BlackElo "2250"]
[Annotator "NA"]
[PlyCount "67"]
[EventDate "2018.09.05"]
[EventType "swiss"]
[EventCountry "TUR"]
[SourceTitle "playchess.com"]
[Source "ChessBase"]
[SourceQuality "1"]
[TimeControl "40/5400+30:1800+30"]

1. Nf3 {[%emt 0:00:30]} d5 {[%emt 0:00:30]} 2. c4 {[%emt 0:00:00]} e6 {[%emt 0:00:00]} 3. g3 {[%emt 0:00:00]} Nf6 {[%emt 0:00:00]} 4. Bg2 {[%emt 0:00:30]} Be7 {[%emt 0:00:30]} 5. d4 {[%emt 0:00:00]} O-O {[%emt 0:00:00]} 6. Qc2 {[%emt 0:00:00]} a6 {[%emt 0:01:00]} 7. Bf4 {[%emt 0:02:30]} dxc4 {[%emt 0:06:30]} 8. Qxc4 {[%emt 0:00:30]} Nd5 {[%emt 0:00:30] E06: Katalanisch} 9. Nc3 {[%emt 0:00:30]} b5 {[%emt 0:04:00]} 10. Qd3 {[%emt 0:00:30]} Bb7 {[%emt 0:00:30]} 11. Nxd5 {[%emt 0:00:30]} exd5 {[%emt 0:02:00]} 12. Rc1 {[%emt 0:03:30]} Bd6 $146 {[%emt 0:29:30]} ({Vorgänger:} 12... Bb4+ 13. Kf1 Bd6 14. Ng5 g6 15. h4 h5 16. Ne6 fxe6 17. Qxg6+ {1-0 (38) Ponomariov,R (2692)-Fidalgo Fernandez,J (2312) Linares 2017}) 13. O-O {[%emt 0:10:30]} ({White should play} 13. Ng5 $16 {[%csl Gg5][%cal Rd3h7]} g6 14. h4) 13... Nd7 {[%emt 0:05:30]} 14. Rc2 {[%emt 0:02:30]} Qe7 {[%emt 0:12:30]} 15. Bxd6 {[%emt 0:39:30]} Qxd6 {[%emt 0:00:30]} 16. Rfc1 {[%emt 0:00:30]} c6 {[%emt 0:01:30]} 17. Bh3 {[%emt 0:54:30]} Nb6 {[%emt 0:08:30]} 18. b3 {[%emt 0:03:30]} Rfe8 {[%emt 0:03:30]} 19. Ne5 {[%emt 0:04:30]} f6 {[%emt 0:02:30]} 20. Nf3 {[%emt 0:06:30]} g6 {[%emt 0:01:30]} 21. e3 {[%emt 0:00:30]} a5 {[%emt 0:06:38]} 22. Qc3 {[%emt 1:14:00]} a4 {[%emt 1:25:05]} 23. Qc5 {[%emt 0:04:30]} Qxc5 {[%emt 0:05:21]} 24. dxc5 {[%emt 0:03:30]} Nc8 {[%emt 0:01:14]} 25. Nd4 {[%emt 0:01:40]} Ne7 {[%emt 0:02:47]} 26. Be6+ {[%emt 0:01:54]} Kg7 {[%emt 0:00:22]} 27. Bd7 {[%emt 0:00:22]} Rh8 {[%emt 0:00:34]} 28. Bg4 $11 {[%emt 0:02:06]} axb3 {[%emt 0:01:08]} 29. axb3 {[%emt 0:00:30]} Ra3 {[%emt 0:01:31]} 30. Bf3 {[%emt 0:02:38]} f5 {[%emt 0:00:46]} 31. Kf1 {[%emt 0:00:38]} Kf6 {[%emt 0:00:20]} 32. Ke2 {[%emt 0:00:12]} Rha8 {[%emt 0:01:20]} 33. Kd2 {[%emt 0:01:02]} R3a5 {[%emt 0:01:51]} 34. Be2 {[%emt 0:03:02]} 1/2-1/2